Cogmind - Beta 13 @@@ ROGUE MODE // 2024.04.04 @ 23:20:37 Player: Essnato Result: Destroyed by G-47 Trooper with Particle Gun Performance ------------- Evolutions (0) 0 Regions Visited (2) 400 Robots Destroyed (17) 85 Value Destroyed (487) 487 Prototype IDs (0) 0 Alien Tech Used (0) 0 Bonus (0) 0 TOTAL SCORE: 972 Bonus ------- None Cogmind --------- Core Integrity 0/250 Matter 129/300 Energy 75/100 System Corruption 2% Temperature Cool (10) Movement Core (300) Ox5 Location -10/Mines Parts ------- > --- POWER (1) -------- (None) > --- PROPULSION (2) --- (None) > --- UTILITY (2) ------ Small Storage Unit Terrain Scanner > --- WEAPON (2) ------- Slug Cannon Grenade Launcher > --- INVENTORY (8) ---- Light Ion Engine Light Ion Engine Wheel Small Storage Unit Grenade Launcher Mining Laser Peak State ------------ > --- POWER ------------ Ion Engine > --- PROPULSION ------- Hover Unit Hover Unit > --- UTILITY ---------- Small Storage Unit Terrain Scanner > --- WEAPON ----------- Small Laser Small Laser > --- INVENTORY -------- Light Ion Engine Light Ion Engine Wheel Small Storage Unit Slug Cannon Grenade Launcher Grenade Launcher Mining Laser [Rating: 8] Favorites ----------- Power Light Ion Engine Engine Light Ion Engine Propulsion Hover Unit Wheel Wheel Hover Unit Hover Unit Utility Small Storage Unit Device Terrain Scanner Storage Small Storage Unit Weapon Assault Rifle Energy Gun Small Laser Ballistic Gun Assault Rifle Ballistic Cannon Slug Cannon Launcher Grenade Launcher Build | -11 -10 -10 ------- Run | Yrd Mat Min Slots Evolved . | . . . Power . | . . . Propulsion . | . . . Utility . | . . . Weapon . | . . . Parts Attached 22 | 6 10 6 Power 2 | 1 1 . Engine 2 | 1 1 . Core . | . . . Reactor . | . . . Propulsion 6 | 2 4 . Treads . | . . . Leg . | . . . Wheel 2 | 2 . . Hover 4 | . 4 . Flight . | . . . Utility 3 | 1 1 1 Device 1 | . . 1 Storage 2 | 1 1 . Processor . | . . . Hackware . | . . . Protection . | . . . Artifact . | . . . Weapon 11 | 2 4 5 Energy Gun 4 | 1 3 . Energy Cannon . | . . . Ballistic Gun 2 | 1 1 . Ballistic Cannon 2 | . . 2 Launcher 3 | . . 3 Special Weapon . | . . . Impact Weapon . | . . . Slashing Weapon . | . . . Piercing Weapon . | . . . Special Melee Weapon . | . . . Unidentified Prototypes . | . . . Parts Lost 10 | . 5 5 Power 2 | . 1 1 Propulsion 4 | . 2 2 Utility . | . . . Weapon 4 | . 2 2 Highest Loss Streak 4 | . 3 4 To Critical Strikes . | . . . Average Slot Usage (%) 77 | . 83 71 Engine 11 | . 14 9 Hover 21 | . 26 17 Device 5 | . . 11 Storage 14 | . 14 14 Energy Gun 11 | . 6 17 Ballistic Gun 10 | . 21 . Naked Turns . | . . . Heaviest Build 17 | 12 17 13 Greatest Support 20 | 20 20 12 Greatest Overweight (x) 4 | 1 2 4 Average Overweight (x) . | . . . Largest Inventory Capacity 8 | 8 8 8 Average Capacity 7 | 7 8 8 Most Carried 8 | 1 8 8 Average Carried 7 | . 6 7 Final Capacity 8 | 8 8 8 Final Carried 8 | 1 8 6 Class Distribution -------------------- 100% | Mutant Dominant Class ---------------- Mutant | -10/Materials Mutant | -10/Mines Resources | -11 -10 -10 ----------- Run | Yrd Mat Min Matter Collected 554 | 201 336 17 Remotely . | . . . Salvage Created 527 | . 444 83 Parts 34 | . 29 5 Haulers Intercepted . | . . . Recyclers Shooed . | . . . Parts Field Recycled . | . . . Retrieved Matter . | . . . Parts Self-Destructed . | . . . Prevented . | . . . Kills | -11 -10 -10 ------- Run | Yrd Mat Min Combat Hostiles Destroyed 14 | . 9 5 Guns 13 | . 9 4 AOE 1 | . . 1 Classes Destroyed 5 | . 3 2 Worker 1 | . 1 . Watcher 2 | . 2 . Swarmer 3 | . . 3 Grunt 10 | . 9 1 Sentry 1 | . . 1 Best Kill Streak 3 | . 2 3 Combat Bots Only 3 | . 2 3 Max Kills in Single Turn 2 | . 1 2 Gunslinging 1 | . . 1 Exploded 1 | . . 1 Melee . | . . . Uniques/NPCs Destroyed . | . . . Combat | -11 -10 -10 -------- Run | Yrd Mat Min Hostile Shots Fired 118 | . 57 61 Missed 38 | . 19 19 Damage Taken 1037 | . 474 563 Core 252 | . 100 152 Absorbed by Shields . | . . . Core Remaining (%) 100 | 100 . . Volleys Fired 74 | . 49 25 Largest 2 | . 2 2 Hottest 105 | . 105 80 Shots Fired 138 | . 91 47 Gun 123 | . 91 32 Cannon 6 | . . 6 Launcher 9 | . . 9 Special . | . . . Kinetic 73 | . 67 6 Thermal 56 | . 24 32 Explosive 9 | . . 9 Electromagnetic . | . . . Robot Hit Streak 9 | . 8 9 Robot Miss Streak 3 | . 3 3 Penetration Max . | . . . Secondary Targets 1 | . . 1 Max Gunslinging Chain 1 | . . 1 Shots Hit Robots 82 | . 60 22 Core Hits 35 | . 24 11 Critical Kills . | . . . Critical Parts Destroyed 1 | . 1 . Critical Strikes 1 | . 1 . Destroy 1 | . 1 . Melee Attacks . | . . . Impact . | . . . Slashing . | . . . Piercing . | . . . Sneak Attacks . | . . . Combat Hostiles . | . . . Follow-up Attacks . | . . . Damage Inflicted 1232 | . 817 415 Guns 967 | . 817 150 Cannons 97 | . . 97 Explosions 164 | . . 164 Melee . | . . . Ramming 4 | . . 4 Kinetic 737 | . 640 97 Thermal 327 | . 177 150 Explosive 164 | . . 164 Electromagnetic . | . . . Impact . | . . . Slashing . | . . . Piercing . | . . . Highest Corruption 2 | . 2 2 Average Corruption 1 | . 1 2 Corruption Purged . | . . . Corruption Blocked . | . . . Effects 10 | . 2 8 Message Errors 2 | . . 2 Matter Fused 1 | . 1 . Energy Discharges 3 | . 1 2 Parts Fused 1 | . . 1 Data Loss (minor) 2 | . . 2 Misfires 1 | . . 1 Overload Shots . | . . . Overflow Damage . | . . . Projectiles . | . . . Explosions . | . . . Melee . | . . . Knockbacks . | . . . Impact . | . . . Kinetic . | . . . Secondary . | . . . Self-Inflicted Damage 2 | . . 2 Shots . | . . . Rammed 1 | . . 1 Targets Rammed 1 | . . 1 Kicked . | . . . Crushed . | . . . Highest Temperature 192 | . 162 192 Average Temperature 50 | . 29 71 Received Heat Transfer 501 | . 270 231 Siege Activations . | . . . Robots Corrupted . | . . . Combat Hostiles . | . . . Parts Fried . | . . . Impact Corruptions . | . . . Robots Melted . | . . . Combat Hostiles . | . . . Parts Melted . | . . . Heat Transferred 710 | . 410 300 Parts Sabotaged . | . . . Parts Stolen . | . . . Parts Stripped . | . . . Power Chain Reactions . | . . . Alert | -11 -10 -10 ------- Run | Yrd Mat Min Peak Influence 286 | . 286 162 Initial 34 | . . 34 Average 83 | . 113 58 Maximum Alert Level 1 | . 1 . Low Security (%) 90 | 100 80 100 Level 1 9 | . 19 . Level 2 . | . . . Level 3 . | . . . Level 4 . | . . . Level 5 . | . . . High Security . | . . . Max Security . | . . . Squads Dispatched 2 | . 2 . Investigation 1 | . 1 . Extermination . | . . . Reinforcement 1 | . 1 . Assault . | . . . Garrison . | . . . Intercept . | . . . Searches Triggered . | . . . Construction Impeded . | . . . Haulers Reinforced . | . . . Active Scanning Responses . | . . . Cargo Convoy Interrupts . | . . . Stealth | -11 -10 -10 --------- Run | Yrd Mat Min Distress Signals 2 | . 2 . Communications Jammed . | . . . Distress Signals . | . . . Times Spotted 26 | . 17 9 Peak Tracking Total 3 | . 3 3 Tactical Retreats 4 | . 3 1 Traps | -11 -10 -10 ------- Run | Yrd Mat Min Traps Triggered 1 | . 1 . Indirectly . | . . . Trap Hack Attempts . | . . . Triggered . | . . . Disarmed . | . . . Reprogrammed . | . . . Reused . | . . . Traps Extracted . | . . . Installed . | . . . Triggered 1 | . . 1 Machines | -11 -10 -10 ---------- Run | Yrd Mat Min Machines Disabled . | . . . Max in Single Turn . | . . . Machines Repaired . | . . . Machines Dismantled . | . . . Machines Sabotaged . | . . . Overloaded Fab Kills . | . . . Hacking | -11 -10 -10 --------- Run | Yrd Mat Min Machines Accessed 5 | . 5 . Terminals 5 | . 5 . Fabricators . | . . . Repair Stations . | . . . Recycling Units . | . . . Scanalyzers . | . . . Garrison Access . | . . . Total Hacks 16 | . 16 . Successful 7 | . 7 . Failed 9 | . 9 . Catastrophic 2 | . 2 . Database Lockouts . | . . . Manual 11 | . 11 . Terminals 16 | . 16 . Fabricators . | . . . Repair Stations . | . . . Recycling Units . | . . . Scanalyzers . | . . . Garrison Access . | . . . Terminal Hacks 7 | . 7 . Record 1 | . 1 . Robot Analysis 3 | . 3 . Alert Level 1 | . 1 . Unreport Threat 1 | . 1 . Hauler Manifests 1 | . 1 . Fabricator Hacks . | . . . Repair Station Hacks . | . . . Recycling Unit Hacks . | . . . Scanalyzer . | . . . Garrison Access Hacks . | . . . Unauthorized Hacks . | . . . Terminals . | . . . Fabricators . | . . . Repair Stations . | . . . Recycling Units . | . . . Scanalyzers . | . . . Garrison Access . | . . . Data Cores Recovered . | . . . Used . | . . . Hacking Detections 5 | . 5 . Full Trace Events 5 | . 5 . Feedback Events 1 | . 1 . Corruption 1 | . 1 . Feedback Blocked . | . . . Robot Schematics Acquired . | . . . Robots Built . | . . . Authchips . | . . . Time . | . . . Total Robot Build Rating . | . . . Part Schematics Acquired . | . . . Parts Built . | . . . Authchips . | . . . Time . | . . . Total Part Build Rating . | . . . Parts Repaired . | . . . Time . | . . . Parts Recycled . | . . . Recycled Matter . | . . . Retrieved Matter . | . . . Retrieved Components . | . . . Parts Scanalyzed . | . . . Part Schematics Acquired . | . . . Parts Damaged . | . . . Bothacking | -11 -10 -10 ------------ Run | Yrd Mat Min Used RIF Installer . | . . . Robots Hacked . | . . . Non-combat . | . . . Combat . | . . . Robot Hacks Applied . | . . . Relay Couplers Released . | . . . Fabnet Peak Effective % . | . . . Robots Rewired . | . . . Allies Hacked . | . . . Hacks Repelled . | . . . Allies | -11 -10 -10 -------- Run | Yrd Mat Min Total Allies . | . . . Largest Group . | . . . Highest-Rated Group . | . . . Highest-Rated Ally . | . . . Total Orders . | . . . Ally Attacks . | . . . Total Damage . | . . . Kills . | . . . Allies Corrupted . | . . . Allies Melted . | . . . Intel | -11 -10 -10 ------- Run | Yrd Mat Min Robot Analysis Total 3 | . 3 . Derelict Logs Recovered 2 | . . 2 Drone Launches . | . . . Drone Recoveries . | . . . Exploration | -11 -10 -10 ------------- Run | Yrd Mat Min Turns Passed 1168 | 52 584 532 Spaces Moved 1087 | 54 599 434 Core 160 | 5 . 155 Treads . | . . . Legs . | . . . Wheels 61 | 49 12 . Hover 866 | . 587 279 Flight . | . . . Fastest Speed 50 | 50 56 56 Average Speed 72 | 78 57 93 Slowest Speed 250 | 100 180 250 Overloaded Moves . | . . . Propulsion Burnouts . | . . . Robots Hopped . | . . . Cave-ins Triggered . | . . . Exploration Rate (%) 57 | 3 80 89 Regions Visited 2 Branch Regions 1 Pre-discovered Areas 1 | . . 1 Known Exits Taken . | . . . Unknown Exits Taken 2 | 1 1 . Scrap Searched 1 | . . 1 Spaces Dug . | . . . Terrain Destroyed 54 | . . 54 Melee . | . . . Projectile 4 | . . 4 AOE 50 | . . 50 Terrain Rammed . | . . . Walls Destroyed . | . . . Machines Disabled . | . . . Actions | -11 -10 -10 --------- Run | Yrd Mat Min Total 1324 | 60 746 518 Wait 123 | . 75 48 Move 1085 | 53 598 434 Hop . | . . . Pick Up 10 | 1 8 1 Fast Attach 14 | 6 7 1 Attach 7 | . 3 4 Detach 5 | . 3 2 Swap 1 | . . 1 Drop 4 | . 3 1 Fire 74 | . 49 25 Melee . | . . . Ram 1 | . . 1 Kick . | . . . Crush . | . . . Escape Stasis . | . . . Rewire . | . . . Trap . | . . . Miscellaneous . | . . . Route ------- -11/Scrapyard -10/Materials (discovered 3 exits: [*Mat] / [*Min x2]) -10/Mines History --------- Turn | Location | Event 23 | -11/Scrapyard | Discovered new exit (range 15) 53 | -11/Scrapyard | Entered Materials 317 | -10/Materials | Build established: Mutant 394 | -10/Materials | Discovered new exit (range 11) 418 | -10/Materials | Discovered new exit (range 13) 463 | -10/Materials | Discovered new exit (range 16) 603 | -10/Materials | Lost 3 parts (1p1n1w) 637 | -10/Materials | Entered Mines 847 | -10/Mines | A weapon hastily lodged in a ceiling crevice suddenly fell to the ground 908 | -10/Mines | Core integrity fell below 50% 1003 | -10/Mines | Lost 4 parts (2n2w) 1009 | -10/Mines | Core integrity fell below 20% 1169 | -10/Mines | Destroyed by G-47 Trooper with Particle Gun Last Messages --------------- Hold RMB on a map location to designate it as a relative view centerpoint. This is especially useful while zoomed, in order to see further in your current direction of exploration. Try it now. Hover Unit destroyed. Sml. Laser destroyed. 5UGD&6M2 O: 8GDBJBIV/ZRHR G3 607N&NASS Critical hit (Burn: +37). System corrupted: FCS attempts to trigger Slug Cannon. System corrupted: Slug Cannon misfires. Ion Engine destroyed. Critical hit (Burn: +37). Y-45 Defender destroyed. The unstable cave ceiling collapses. Y-45 Defender destroyed. The unstable cave ceiling collapses. X4U 2YF136JFNLI&MS7AQ7QWT Hold RMB on a map location to designate it as a relative view centerpoint. This is especially useful while zoomed, in order to see further in your current direction of exploration. Try it now. Slug penetrates Wall. Map ----- +----------------------------------------------------+ | ??????#####???#?# #??????#?????????#???? | | #???????##??????# #???#????###########?? | | ????????????????# #??#?????## #?? | | ????????????????# #??######?# #?? | | ??????????#?????#!#?## ### """ #?? | | ?????#??????????#%### ## """ #?? | | ???#?#??????????#[ ## """ #?? | | ????????????????#### ### #?? | | ???????#??#??#?????## ##?# #?? | | ??????????#?????????### #??# #?? | | ???????##??#??????????# #??# =#######?? | | ?????????????#????????# ####%!#???????? | | ??????#??????????????## ### ]#???????? | | ????????????????????## ## ###?????? | | ??""???????????????## # ##????? | | ? ????????????????# ### ##???? | | ? ??????????????## #??## ##??? | | ?????????#??????## #????# #??? | | ???????????????#?##?????# ##?? | | #????????????#??????###??# ##? | | #????????????????????????## r #? | | #????????????#???????????## ? | | #???????????????????#???## #?? | | #?????????????????????### #?? | | #???????????#####??#### g #? | | ##??????????## #### @ g #? | | ############# ##### #??? | | ##????# #??? | | ######### ### ###??????# #?? | | ????????# #?# #####????????? #?? | | ????????# ### ##?????????????? #?? | | ??????### ## ##??????????????? ##?? | | ??????# ## ##???????????????? #??? | | ??????# ##### #####?????????????#??? | | ??????# ###?# # ##???????????????? | | ?????## ### ## #?????#?????????? | | ?#??## ## ### #???#???????????? | | ???## #?## ##???????????????? | | ??## # #??#####????????????????? | | ?## #???????????????????????? | | ?# ####???????????????????????? | | ?# ##?#???????????????????????? | | ?# ##????????????????????????? | | ?# ## ##???????????????????????? | | ?##?## ##??????????????????????? | | ????## ######?????????????????? | | ??### #?#???????????????? | | ### ##?????????????????? | | ######??????????????????? | | ###???????????????????????? | +----------------------------------------------------+ Best States ------------- Heat Dissipation 25 Energy Generation 10 Energy Capacity 250 Matter Stores 300 Matter Capacity 300 Sight Range 16 Terrain Scan Range 14 Terrain Scan Density 10 Evasion (%) 53 Item Schematics ----------------- None Robot Schematics ------------------ None Fabricated ------------ Nothing Alien Tech Used ----------------- None Achievements -------------- Armchair Analyst Challenges ------------ None Game ------ Seed InsulationPulseScanner Manual? 0 Play Time 00:16:04 Cumulative 7.2 hours Start 2024.04.04 @ 23:02:05 End 2024.04.04 @ 23:20:37 Sessions 1 Manual Loads 0 Difficulty Rogue Special Mode None Game No. 7 Rogue 7 Adventurer 0 Explorer 0 Win Type - Total 0 Types 0/0/0/0/0/0/0/0/0 Lore% 5 Gallery% 15 Achievement% 16 Wizard Run 0 Options --------- Layout 0 ASCII 0 Keyboard 0 Movement Mouse Keybinds 0 Fullscreen 1 Font 18/SmallcapsGlow Map View 38x25 Zoom Use 88% Tactical HUD 0 Map Filters NONE Filters NONE Steam 1 RUN: c58b5dfc-8a58-4209-8f12-589817f1acab